bitfinex-derivatives/quotes_SOLF0:USTF0_20260126
["timestamp","ask_amount","ask_price","bid_price","bid_amount"]
[1769400625365,3.50751258,122.16,122.08,6.29102491]
[1769400625971,3.50751258,122.16,122.08,6.23000621]
[1769400626372,3.50751258,122.16,122.11,0.05871641]
[1769400633974,3.50751258,122.16,122.11,3.57472079]
[1769400634175,5.9912287,122.18,122.11,3.57472079]
[1769400634370,3.25835101,122.17,122.11,3.57472079]
[1769400636783,10.63515101,122.17,122.11,0.05871641]
[1769400636982,3.25835101,122.16,122.11,0.05871641]
[1769400639489,3.25835101,122.15,122.11,0.05871641]
[1769400640484,3.25835101,122.17,122.11,6.30759848]
[1769400642496,3.25835101,122.17,122.11,3.57472079]
[1769400642685,3.25835101,122.17,122.11,6.30759848]
[1769400643990,3.25835101,122.16,122.11,0.05871641]
[1769400646389,3.25835101,122.18,122.13,3.51600438]
[1769400646585,3.25835101,122.18,122.14,2.73287769]
[1769400647290,3.25835101,122.18,122.15,0.05769982]
[1769400654198,3.25835101,122.18,122.1,3.51600438]
[1769400654402,3.31172211,122.18,122.11,2.73287769]
[1769400654990,3.25835101,122.18,122.11,2.73287769]
[1769400655196,3.25835101,122.18,122.11,6.24888207]
[1769400655396,114.7243,122.2,122.11,6.24888207]
[1769400655397,5.9912287,122.17,122.11,6.24888207]
[1769400655599,5.9912287,122.17,122.11,3.51600438]
[1769400656599,5.9912287,122.17,122.09,3.51600438]
[1769400656600,3.25835101,122.16,122.09,3.51600438]
[1769400656795,3.25835101,122.14,122.07,13.63118207]
[1769400657101,3.25835101,122.14,122.08,3.51600438]
[1769400657301,3.25835101,122.14,122.08,10.89790438]
[1769400659103,5.9912287,122.16,122.09,6.24888207]
[1769400659301,5.9912287,122.16,122.1,3.51600438]
[1769400659502,3.25835101,122.15,122.1,3.51600438]
[1769400659903,3.25835101,122.15,122.08,10.89790438]
[1769400660808,3.25835101,122.13,122.08,3.51600438]
[1769400664401,3.25835101,122.13,122.06,3.43179598]
[1769400664813,6.01536372,122.12,122.06,3.43179598]
[1769400665711,3.28248603,122.11,122.06,3.43179598]
[1769400667707,3.28248603,122.11,122.06,10.81499598]
[1769400668110,3.28248603,122.13,122.07,3.43179598]
[1769400668305,3.28248603,122.13,122.08,3.43179598]
[1769400668512,2.73287769,122.14,122.08,10.81379598]
[1769400668809,3.28248603,122.13,122.05,3.43179598]
[1769400669014,6.01536372,122.12,122.05,3.43179598]
[1769400669507,3.28248603,122.14,122.08,3.43179598]
[1769400669711,2.73287769,122.15,122.09,3.43179598]
[1769400670012,3.28248603,122.16,122.1,3.43179598]
[1769400670305,2.73287769,122.17,122.11,3.43179598]
[1769400670912,6.01536372,122.17,122.11,3.43179598]
[1769400671611,3.28248603,122.17,122.11,3.43179598]
[1769400671814,6.01536372,122.17,122.11,3.43179598]
[1769400674412,3.28248603,122.17,122.11,3.43179598]
[1769400680116,3.28248603,122.17,122.11,6.16467367]
[1769400680613,2.73287769,122.19,122.12,3.38189221]
[1769400680817,3.29462146,122.19,122.14,6.1147699]
[1769400681906,3.29462146,122.19,122.14,3.38189221]
[1769400682215,6.02749915,122.19,122.12,6.1147699]
[1769400682407,3.29462146,122.19,122.12,6.1147699]
[1769400683117,3.29462146,122.19,122.13,3.38189221]
[1769400684119,3.29462146,122.19,122.13,6.1147699]
[1769400686616,3.29462146,122.19,122.14,2.73287769]
[1769400689416,3.29462146,122.19,122.13,6.1147699]
[1769400691521,3.29462146,122.19,122.13,6.11354637]
[1769400694123,3.29462146,122.19,122.14,2.73165416]
[1769400697227,3.29462146,122.19,122.13,6.11354637]
[1769400698527,3.4358276,122.18,122.13,6.11354637]
[1769400698822,3.4358276,122.18,122.12,2.73165416]
[1769400699025,6.16748176,122.18,122.11,6.28671254]
[1769400699217,3.4358276,122.17,122.11,6.28671254]
[1769400701626,3.4358276,122.17,122.11,3.55505838]
[1769400701824,3.4358276,122.16,122.1,6.28671254]
[1769400704124,3.4358276,122.19,122.14,3.55505838]
[1769400704427,114.7086,122.22,122.16,6.28671254]
[1769400704428,3.4358276,122.22,122.16,6.28671254]
[1769400705531,3.4358276,122.21,122.16,3.55505838]
[1769400705730,3.4358276,122.21,122.15,2.73165416]
[1769400705928,3.4358276,122.21,122.14,13.66501254]
[1769400706128,3.4358276,122.21,122.15,3.55505838]
[1769400706935,3.4358276,122.21,122.15,6.28671254]
[1769400709131,6.16748176,122.21,122.15,3.55505838]
[1769400710334,3.4358276,122.21,122.15,3.55505838]
[1769400712845,3.4358276,122.21,122.15,6.28671254]
[1769400713734,3.4358276,122.21,122.16,6.28671254]
[1769400714041,3.4358276,122.23,122.17,6.28671254]
[1769400719852,3.4358276,122.22,122.17,3.55505838]
[1769400724048,3.4358276,122.22,122.17,6.28671254]
[1769400724959,3.4358276,122.22,122.17,3.55505838]
[1769400728163,3.46953971,122.21,122.15,3.27445886]
[1769400728366,3.46953971,122.2,122.15,3.27445886]
[1769400728663,3.46953971,122.2,122.15,6.00611302]
[1769400729256,3.46953971,122.2,122.15,3.27445886]
[1769400731466,6.20119387,122.2,122.15,3.27445886]
[1769400733263,3.46953971,122.19,122.12,10.65375886]
[1769400733461,3.46953971,122.15,122.08,3.27445886]
[1769400733861,6.20119387,122.15,122.08,3.27445886]
[1769400734664,413.6702,122.26,122.11,3.27445886]
[1769400734665,13.57749387,122.18,122.11,3.27445886]
[1769400735061,3.46953971,122.17,122.11,3.27445886]
[1769400736262,3.46953971,122.17,122.13,0.05571208]
[1769400740371,13.40482558,122.2,122.13,6.3182598]
[1769400740671,10.67317142,122.2,122.14,3.53089356]
[1769400741268,10.67317142,122.2,122.16,0.06084862]
[1769400743571,13.40482558,122.2,122.16,0.06084862]
[1769400748376,3.29807142,122.22,122.16,3.59174218]
[1769400748565,3.29807142,122.22,122.17,3.53089356]
[1769400749375,3.29807142,122.22,122.18,0.05929283]
[1769400750374,2.73165416,122.23,122.18,0.05929283]
[1769400750579,6.02972558,122.22,122.18,0.05929283]
[1769400751577,6.0291176,122.22,122.18,0.05929283]
[1769400751974,6.0291176,122.19,122.13,3.53089356]
[1769400752480,3.29807142,122.18,122.13,3.53089356]
[1769400752980,6.0291176,122.18,122.13,3.53089356]
[1769400753377,0.06308622,122.17,122.13,3.53089356]
[1769400758389,0.06308622,122.17,122.14,0.05786273]
[1769400761982,2.7941324,122.17,122.14,0.05786273]
[1769400762681,6.19931757,122.17,122.09,2.73104618]
[1769400763076,6.13623135,122.17,122.09,2.73104618]
[1769400763283,2.73104618,122.16,122.09,2.73104618]
[1769400764087,0.06275788,122.14,122.09,2.73104618]
[1769400764689,0.06275788,122.14,122.1,3.38639439]
[1769400769088,0.06275788,122.14,122.1,6.11744057]
[1769400769392,0.00489515,122.14,122.11,6.11744057]
[1769400770595,0.00489515,122.14,122.12,3.38639439]
[1769400771394,3.40518517,122.18,122.12,6.11744057]
[1769400771695,3.40518517,122.18,122.12,3.38639439]
[1769400772795,0.05727782,122.16,122.12,3.38639439]
[1769400779796,0.05727782,122.16,122.09,3.38639439]
[1769400780001,3.46246299,122.16,122.1,6.11744057]
[1769400780298,3.40518517,122.16,122.1,6.11744057]
[1769400780704,0.05362053,122.14,122.1,6.11744057]
[1769400781289,0.05362053,122.14,122.11,3.38639439]
[1769400782500,3.40518517,122.18,122.12,6.11744057]
[1769400783999,3.40518517,122.18,122.14,0.05261922]
[1769400786003,3.40518517,122.18,122.12,3.38639439]
[1769400787502,0.05466926,122.16,122.12,3.38639439]
[1769400796513,0.05466926,122.16,122.12,6.11744057]
[1769400799713,0.05466926,122.16,122.12,3.38639439]
[1769400801216,3.55528397,122.16,122.1,6.07703964]
[1769400801516,6.23166089,122.14,122.08,3.34599346]
[1769400802609,2.73104618,122.13,122.08,3.34599346]
[1769400803118,0.05803057,122.12,122.08,3.34599346]
[1769400804120,6.28969146,122.12,122.06,3.34599346]
[1769400804314,0.05803057,122.12,122.07,3.34599346]
[1769400804613,0.05803057,122.12,122.08,3.34599346]
[1769400806614,6.23166089,122.16,122.1,3.34599346]
[1769400806821,3.50061471,122.16,122.1,3.34599346]
[1769400807820,6.23166089,122.16,122.1,3.34599346]
[1769400808120,6.23166089,122.16,122.12,0.05249797]
[1769400808519,2.73104618,122.17,122.12,0.05249797]
[1769400809221,13.60796089,122.18,122.12,0.05249797]
[1769400810928,3.50061471,122.17,122.12,0.05249797]
[1769400811829,6.23166089,122.17,122.12,0.05249797]
[1769400812129,3.50061471,122.16,122.12,0.05249797]
[1769400812323,6.23166089,122.18,122.12,3.39849143]
[1769400812517,3.50061471,122.18,122.13,3.34599346]
[1769400814728,2.73232953,122.19,122.13,3.34599346]
[1769400814927,6.17128043,122.2,122.13,6.07832299]
[1769400815227,3.4389509,122.19,122.13,6.07832299]
[1769400815628,2.73232953,122.18,122.15,0.0551772]
[1769400815834,6.17128043,122.18,122.12,3.26879991]
[1769400816733,6.17128043,122.18,122.12,6.00112944]
[1769400817033,3.4389509,122.18,122.12,6.00112944]
[1769400819130,0.0571283,122.16,122.12,6.00112944]
[1769400822031,0.0571283,122.16,122.13,6.00112944]
[1769400822229,3.4389509,122.2,122.14,6.00112944]
[1769400822437,0.52882404,122.2,122.15,6.00112944]
[1769400823531,0.52882404,122.2,122.16,0.06014757]
[1769400825533,3.4389509,122.25,122.17,6.00112944]
[1769400825735,3.4389509,122.24,122.18,6.00112944]
[1769400826331,3.4389509,122.24,122.2,0.06192952]
[1769400840944,7.3716,122.26,122.2,6.06305896]
[1769400841148,3.4389509,122.25,122.2,6.06305896]
[1769400847559,7.3716,122.26,122.21,3.261351]
[1769400847748,10.87091285,122.26,122.21,3.261351]
[1769400848658,3.49931285,122.25,122.21,3.261351]
[1769400849459,3.49931285,122.25,122.2,0.06192952]
[1769400849661,3.49931285,122.25,122.2,2.79425905]
[1769400850156,3.49931285,122.25,122.2,6.05561005]
[1769400850960,3.49931285,122.25,122.2,3.32328052]
[1769400853661,3.49931285,122.25,122.2,6.05561005]
[1769400855862,10.87021285,122.27,122.22,3.261351]
[1769400856057,3.49931285,122.27,122.22,3.261351]
[1769400856861,3.49931285,122.27,122.23,0.059829]
[1769400859759,3.48909986,122.29,122.23,3.38377575]
[1769400860757,3.48909986,122.29,122.24,6.05627628]
[1769400867567,3.48909986,122.29,122.24,3.32394675]
[1769400868765,6.22142939,122.29,122.24,3.32394675]
[1769400868968,3.48909986,122.28,122.24,3.32394675]
[1769400869170,3.48909986,122.28,122.23,0.059829]
[1769400869471,3.48909986,122.27,122.23,0.059829]
[1769400870569,6.22142939,122.27,122.23,0.059829]
[1769400871676,3.48909986,122.27,122.23,0.059829]
[1769400871872,6.22142939,122.27,122.23,0.059829]
[1769400875567,6.21769583,122.27,122.23,0.059829]
[1769400875969,3.48909986,122.27,122.23,0.059829]
[1769400893688,3.53277583,122.24,122.17,3.27858324]
[1769400893893,3.53277583,122.24,122.18,3.27858324]
[1769400894992,0.0539717,122.22,122.18,3.27858324]
[1769400895985,0.0539717,122.22,122.18,6.00717921]
[1769400897799,0.0539717,122.22,122.18,3.27858324]
[1769400899782,3.58674753,122.22,122.16,3.27858324]
[1769400902483,6.3153435,122.22,122.16,3.27858324]
[1769400902895,3.53277583,122.21,122.16,3.27858324]
[1769400903394,6.2613718,122.21,122.16,3.27858324]
[1769400905594,3.53277583,122.21,122.16,3.27858324]
[1769400911300,0.0539717,122.22,122.17,6.13468992]
[1769400911697,3.29260208,122.22,122.17,3.40609395]
[1769400922313,10.81398115,122.26,122.19,3.29133242]
[1769400922507,10.81398115,122.26,122.2,6.01992839]
[1769400922911,10.81398115,122.26,122.21,3.29133242]
[1769400922912,3.44228115,122.26,122.21,3.29133242]
[1769400923411,114.6283,122.3,122.22,3.29133242]
[1769400923412,3.44228115,122.28,122.22,3.29133242]
[1769400923613,3.44228115,122.27,122.22,3.35304447]
[1769400924107,3.44228115,122.27,122.22,6.08164044]
[1769400924408,3.44228115,122.27,122.22,0.06171205]
[1769400924612,3.44228115,122.27,122.22,3.35304447]
[1769400924812,3.44228115,122.27,122.22,6.08164044]
[1769400927613,2.72859597,122.29,122.23,3.29133242]
[1769400927815,13.53987712,122.3,122.23,3.29133242]
[1769400928012,3.44228115,122.29,122.23,3.29133242]
[1769400928209,3.44228115,122.28,122.21,3.29133242]
[1769400928515,6.17087712,122.26,122.21,3.29133242]
[1769400928711,6.22271666,122.26,122.21,3.29133242]
[1769400931021,3.44228115,122.25,122.19,3.29133242]
[1769400931918,0.05619862,122.23,122.19,3.29133242]
[1769400933021,0.05619862,122.23,122.19,6.01992839]
[1769400934118,0.00158721,122.23,122.19,6.01992839]
[1769400934319,0.00158721,122.23,122.2,3.47524096]
[1769400934520,13.50994037,122.29,122.23,3.47524096]
[1769400934921,3.4115444,122.28,122.23,3.47524096]
[1769400936021,3.4115444,122.28,122.24,0.05638963]
[1769400941727,3.4115444,122.28,122.24,2.78392527]
[1769400941924,3.4115444,122.28,122.22,2.72753564]
[1769400942324,3.46650055,122.27,122.23,2.72753564]
[1769400942530,3.46650055,122.27,122.24,2.72753564]
[1769400942723,3.4115444,122.27,122.24,2.72753564]
[1769400942924,3.4115444,122.29,122.24,2.72753564]
[1769400943324,0.05241075,122.27,122.24,2.72753564]
[1769400946632,0.05241075,122.27,122.24,6.2027766]
[1769400946831,10.7805444,122.3,122.25,6.2027766]
[1769400947625,3.4115444,122.3,122.26,2.72753564]
[1769400948426,3.4115444,122.3,122.27,0.05884771]
[1769400952030,3.4115444,122.3,122.26,2.72753564]
[1769400952232,3.46746704,122.3,122.26,2.72753564]
[1769400957629,3.46746704,122.3,122.23,7.3729]
[1769400957835,3.4115444,122.29,122.24,6.2027766]
[1769400958740,0.06209488,122.28,122.24,6.2027766]
[1769400963547,0.06209488,122.28,122.24,3.47524096]
[1769400970855,3.51963609,122.33,122.27,3.38283613]
[1769400971047,3.51963609,122.33,122.27,6.11037177]
[1769400971448,3.51963609,122.32,122.27,3.38283613]
[1769400972057,3.51963609,122.32,122.28,3.38283613]
[1769400972252,3.51963609,122.34,122.28,3.38283613]
[1769400972557,3.51963609,122.34,122.28,6.17169488]
[1769400975360,3.51963609,122.34,122.28,3.44415924]
[1769400979469,6.24717173,122.34,122.28,3.44415924]
[1769400980764,6.02233852,122.33,122.28,3.44415924]
[1769400981365,6.02233852,122.33,122.28,3.38283613]
[1769400981667,6.02233852,122.33,122.29,0.055904]
[1769400981862,13.38953852,122.33,122.29,0.055904]
[1769400985667,7.3672,122.33,122.29,3.29370434]
[1769400986269,10.66200288,122.33,122.29,3.29370434]
[1769400988973,10.66110288,122.35,122.29,6.02123998]
[1769400989178,6.02233852,122.33,122.29,3.29370434]
[1769400989470,6.02233852,122.33,122.29,0.055904]
[1769400989664,3.29480288,122.33,122.28,3.23780034]
[1769400990076,3.29480288,122.33,122.3,0.05435822]
[1769400990877,10.66200288,122.33,122.3,0.05435822]
[1769400995087,3.29480288,122.33,122.3,0.05435822]
[1769401006094,7.3669,122.34,122.3,0.05435822]
[1769401006295,3.49537624,122.35,122.3,6.09781576]
[1769401009795,3.49537624,122.35,122.31,6.04345754]
[1769401010801,3.49537624,122.37,122.31,6.04345754]
[1769401010998,3.49537624,122.37,122.32,3.31808608]
[1769401011800,3.49537624,122.37,122.33,0.05406406]
[1769401017403,10.86027624,122.37,122.33,0.05406406]
[1769401019800,7.3653,122.36,122.33,0.05406406]
[1769401020005,6.2207477,122.34,122.29,3.31808608]
[1769401021004,3.49537624,122.33,122.29,3.31808608]
[1769401021407,3.54948896,122.33,122.29,3.31808608]
[1769401021708,10.91668896,122.33,122.27,6.04345754]
[1769401022097,10.86257624,122.33,122.27,6.04345754]
[1769401023406,13.5879477,122.33,122.27,3.31808608]
[1769401023905,0.05423924,122.31,122.27,3.31808608]
[1769401025011,0.05423924,122.31,122.24,205.4522]
[1769401025012,3.45221906,122.31,122.25,3.41561729]
[1769401025902,10.82061906,122.31,122.25,3.41561729]
[1769401028810,3.39797982,122.29,122.25,3.41561729]
[1769401029710,3.39797982,122.29,122.23,3.41561729]
[1769401030304,10.76757982,122.29,122.23,3.41561729]
[1769401030504,0.0556741,122.27,122.23,3.41561729]
[1769401031004,3.45365392,122.27,122.22,517.63971772]
[1769401031205,6.12335128,122.26,122.22,198.78]
[1769401031915,6.12335128,122.24,122.18,3.41561729]
[1769401032611,3.39797982,122.26,122.2,3.41561729]
[1769401033305,0.05370686,122.24,122.2,3.41561729]
[1769401033500,3.45168668,122.24,122.17,308.57944605]
[1769401033706,3.39797982,122.23,122.16,3.41561729]
[1769401033910,2.77907832,122.24,122.16,3.41561729]
[1769401033911,6.12335128,122.22,122.16,3.41561729]
[1769401034700,6.12335128,122.21,122.16,3.41561729]
[1769401035201,0.05956423,122.2,122.16,3.41561729]
[1769401036712,0.05956423,122.2,122.14,6.16092114]
[1769401037317,0.05956423,122.2,122.15,3.43554968]
[1769401037511,3.37044245,122.2,122.15,3.43554968]
[1769401038715,6.09581391,122.2,122.15,3.43554968]
[1769401039619,3.31863621,122.19,122.13,205.01852934]
[1769401040014,6.04400767,122.19,122.13,205.01852934]
[1769401040412,6.04400767,122.19,122.14,3.29852934]
[1769401040613,0.05227346,122.17,122.14,3.29852934]
[1769401044426,6.04400767,122.19,122.14,3.29852934]
[1769401044623,6.04400767,122.19,122.14,3.35970713]
[1769401046326,6.04400767,122.21,122.15,3.29852934]
[1769401047233,6.04400767,122.21,122.17,0.05361098]
[1769401050323,3.31863621,122.2,122.17,0.05361098]
[1769401054733,3.54657475,122.22,122.17,0.05361098]
[1769401057932,6.27735996,122.21,122.17,0.05361098]
[1769401058132,3.54657475,122.2,122.17,0.05361098]
[1769401060536,3.54657475,122.2,122.13,217.2337969]
[1769401060739,3.60856953,122.2,122.13,217.2337969]
[1769401062031,0.06199478,122.2,122.16,6.16578211]
[1769401062225,0.06199478,122.2,122.17,3.4349969]
[1769401062430,3.54657475,122.29,122.2,3.4349969]
[1769401062639,3.54657475,122.29,122.23,6.16578211]
[1769401062937,3.54657475,122.29,122.23,3.4349969]
[1769401063234,3.54657475,122.28,122.23,3.4349969]
[1769401063735,3.54657475,122.28,122.24,0.05621533]
[1769401063930,3.54657475,122.3,122.24,3.49121223]
[1769401064131,3.54657475,122.3,122.25,2.73078521]
[1769401064934,3.54657475,122.3,122.26,0.05216158]
[1769401068943,3.54657475,122.3,122.26,2.78294679]
[1769401069438,3.54657475,122.3,122.26,0.05216158]
[1769401070740,3.54657475,122.28,122.24,2.73078521]
[1769401071046,3.54657475,122.28,122.23,10.10348521]
[1769401071841,3.54657475,122.28,122.19,3.4349969]
[1769401072044,3.54657475,122.27,122.2,2.73078521]
[1769401072539,3.54657475,122.27,122.21,6.16578211]
[1769401072745,3.54657475,122.27,122.22,2.73078521]
[1769401074943,3.54657475,122.27,122.21,6.16578211]
[1769401076149,0.05703384,122.25,122.21,6.16578211]
[1769401081143,3.54657475,122.29,122.24,6.16578211]
[1769401081450,3.54657475,122.29,122.26,2.73078521]
[1769401082642,3.54657475,122.29,122.26,2.7909033]
[1769401082847,3.54657475,122.31,122.26,2.7909033]
[1769401083049,3.54657475,122.31,122.27,2.73078521]
[1769401085453,3.54657475,122.31,122.26,6.2259002]
[1769401085751,10.09758521,122.34,122.27,6.00880507]
[1769401085752,3.31136644,122.33,122.27,6.00880507]
[1769401086754,3.31136644,122.33,122.29,2.78605317]
[1769401087056,3.31136644,122.35,122.29,6.06407303]
[1769401088355,3.31136644,122.37,122.31,2.73078521]
[1769401088547,3.31136644,122.39,122.34,2.73078521]
[1769401088749,3.31136644,122.41,122.37,2.73078521]
[1769401089250,3.31136644,122.41,122.36,2.73078521]
[1769401090151,3.31136644,122.41,122.37,0.05767105]
[1769401094554,3.31136644,122.43,122.37,0.05767105]
[1769401097859,10.67266644,122.43,122.37,0.05767105]
[1769401098055,3.46871736,122.41,122.37,0.05767105]
[1769401098559,3.46871736,122.41,122.35,3.27801986]
[1769401098853,3.46871736,122.4,122.33,2.73078521]
[1769401099058,117.24568521,122.42,122.32,3.45624285]
[1769401099059,3.46871736,122.42,122.36,3.45624285]
[1769401099250,3.46871736,122.42,122.37,6.18702806]
[1769401101453,3.46871736,122.44,122.38,3.45624285]
[1769401107562,3.46871736,122.42,122.35,6.18702806]
[1769401107961,3.46871736,122.42,122.36,3.45624285]
[1769401109459,3.46871736,122.44,122.38,3.45624285]
[1769401110565,6.19950257,122.46,122.38,3.45624285]
[1769401110763,3.46871736,122.46,122.4,3.45624285]
[1769401116267,2.73078521,122.48,122.41,3.34337249]
[1769401116468,3.52451826,122.48,122.42,3.34337249]
[1769401118165,3.52451826,122.52,122.45,6.0741577]
[1769401118362,3.52451826,122.52,122.46,3.34337249]
[1769401118868,6.25530347,122.51,122.44,3.34337249]
[1769401119262,3.52451826,122.5,122.44,3.34337249]
[1769401119666,6.24283357,122.5,122.44,3.34337249]
[1769401122072,3.52451826,122.49,122.44,3.34337249]
[1769401127870,10.88211826,122.49,122.44,3.34337249]
[1769401128476,3.52451826,122.52,122.44,3.34337249]
[1769401128672,6.24283357,122.51,122.44,3.34337249]
[1769401129868,13.59933357,122.51,122.44,3.34337249]
[1769401131778,3.52451826,122.49,122.43,2.71831531]
[1769401132880,10.88211826,122.49,122.43,2.71831531]
[1769401133284,10.88211826,122.49,122.42,3.34337249]
[1769401133285,3.52451826,122.48,122.42,3.34337249]
[1769401133485,3.52451826,122.48,122.4,6.0616878]
[1769401133882,6.24283357,122.47,122.4,6.0616878]
[1769401134989,13.60163357,122.47,122.4,6.0616878]
[1769401135185,3.52451826,122.46,122.4,6.0616878]
[1769401135383,7.3601,122.45,122.38,76.40337249]
[1769401135587,13.60293357,122.45,122.38,3.34337249]
[1769401135988,3.52451826,122.44,122.38,3.34337249]
[1769401136491,10.88591826,122.43,122.36,3.34337249]
[1769401136688,3.52451826,122.42,122.36,3.34337249]
[1769401137995,10.88641826,122.42,122.36,3.34337249]
[1769401138290,2.71831531,122.43,122.36,3.34337249]
[1769401139089,2.71831531,122.43,122.35,10.08391531]
[1769401139090,3.52451826,122.44,122.38,3.34337249]
[1769401146300,2.71831531,122.45,122.38,3.34337249]
[1769401146494,6.1868521,122.45,122.38,3.34337249]
[1769401150199,2.71831531,122.46,122.39,3.48907885]
[1769401150501,129.1062,122.55,122.39,3.48907885]
[1769401150502,6.1868521,122.48,122.4,3.48907885]
[1769401151104,6.1868521,122.48,122.41,6.20739416]
[1769401151401,3.46853679,122.48,122.41,6.20739416]
[1769401152800,3.46853679,122.48,122.42,2.71831531]
[1769401154204,3.46853679,122.48,122.42,6.20739416]
[1769401154401,3.46853679,122.48,122.43,3.48907885]
[1769401154704,6.1868521,122.5,122.43,6.20739416]
[1769401155404,6.1868521,122.5,122.44,3.48907885]
[1769401157207,13.32889195,122.52,122.45,3.27727837]
[1769401157403,5.97309195,122.51,122.45,3.27727837]
[1769401158406,3.25477664,122.51,122.45,5.99559368]
[1769401159298,5.97309195,122.53,122.46,13.35449368]
[1769401159699,3.25477664,122.53,122.47,2.71831531]
[1769401160902,5.97309195,122.53,122.46,13.35449368]
[1769401161903,3.25477664,122.53,122.46,13.35449368]
[1769401162406,3.25477664,122.53,122.47,3.27727837]
[1769401163310,0.05623305,122.51,122.47,3.27727837]
[1769401163512,0.05623305,122.51,122.47,5.99559368]
[1769401164915,0.05623305,122.51,122.47,3.27727837]
[1769401166310,3.31100969,122.51,122.44,10.63717837]
[1769401166505,3.31100969,122.51,122.45,2.71831531]
[1769401166702,3.25477664,122.51,122.44,13.35549368]
[1769401166907,3.25477664,122.51,122.45,3.27727837]
[1769401167107,3.25477664,122.51,122.45,5.99559368]
[1769401167712,5.97309195,122.51,122.45,5.99559368]
[1769401168109,5.97309195,122.51,122.45,3.27727837]
[1769401168911,3.25477664,122.5,122.45,3.27727837]
[1769401172717,3.25477664,122.5,122.46,2.71831531]
[1769401173010,3.25477664,122.5,122.45,5.99559368]
[1769401173901,3.37370854,122.52,122.46,2.71831531]
[1769401174113,3.37370854,122.52,122.46,6.10623939]
[1769401175512,3.37370854,122.52,122.47,6.10623939]
[1769401177116,3.37370854,122.52,122.48,2.71831531]
[1769401179618,3.37370854,122.52,122.47,6.10623939]
[1769401181619,3.37370854,122.52,122.47,6.10446704]
[1769401182416,3.37370854,122.52,122.47,3.38792408]
[1769401188225,3.37370854,122.52,122.47,6.10446704]
[1769401188923,3.37370854,122.54,122.48,6.10446704]
[1769401189123,0.05623934,122.51,122.49,2.71654296]
[1769401189322,3.37370854,122.54,122.49,2.71654296]
[1769401189522,3.37370854,122.54,122.5,0.05403154]
[1769401190822,3.37370854,122.56,122.51,3.38792408]
[1769401191221,3.37370854,122.56,122.5,2.7705745]
[1769401191420,3.37370854,122.56,122.51,2.71654296]
[1769401191728,3.37370854,122.56,122.52,2.71654296]
[1769401192422,3.37370854,122.56,122.51,2.71654296]
[1769401192618,3.37370854,122.59,122.53,2.71654296]
[1769401192824,3.37370854,122.59,122.53,2.77365001]
[1769401196330,13.4419515,122.59,122.53,0.05710705]
[1769401196529,3.37370854,122.61,122.53,3.44503113]
[1769401196732,3.37370854,122.61,122.55,2.71654296]
[1769401197027,3.37370854,122.6,122.54,2.71654296]
[1769401197622,3.37370854,122.6,122.57,0.05762782]
[1769401197926,124.4,122.64,122.57,0.05762782]
[1769401198230,2.71654296,122.63,122.57,0.05762782]
[1769401198527,114.314,122.64,122.57,0.05762782]
[1769401198731,2.71654296,122.61,122.54,2.71654296]
[1769401199035,2.71654296,122.62,122.54,2.71654296]
[1769401199227,2.71654296,122.62,122.55,2.71654296]
[1769401199423,2.71654296,122.62,122.55,6.10446704]
[1769401199726,2.71654296,122.63,122.55,3.38792408]
[1769401199931,3.37370854,122.62,122.55,6.10446704]
[1769401200332,3.37370854,122.62,122.56,6.10446704]
[1769401200519,3.37370854,122.64,122.57,3.38792408]
[1769401200724,3.37370854,122.64,122.59,2.71654296]
[1769401200925,42.85883597,122.66,122.6,2.71654296]
[1769401201423,42.85883597,122.66,122.6,6.10446704]
[1769401201632,39.48512743,122.66,122.62,2.71654296]
[1769401201824,39.48512743,122.66,122.63,2.71654296]
[1769401202221,13.4348515,122.71,122.64,6.10446704]
[1769401202530,0.05670001,122.66,122.64,3.38792408]
[1769401202929,3.37370854,122.7,122.64,3.38792408]
[1769401203335,3.37370854,122.7,122.64,6.10446704]
[1769401203634,3.37370854,122.7,122.62,7.3493]
[1769401203635,13.4353515,122.7,122.63,2.71654296]
[1769401203931,13.4353515,122.7,122.63,6.18100509]
[1769401204135,10.71880854,122.7,122.63,6.18100509]
[1769401204930,3.44840224,122.68,122.61,6.18100509]
[1769401205230,3.44840224,122.68,122.61,3.46446213]
[1769401205836,3.44840224,122.67,122.6,2.71654296]
[1769401206538,3.44840224,122.67,122.6,6.18100509]
[1769401206730,6.1649452,122.67,122.6,6.18100509]
[1769401206932,13.5118452,122.67,122.6,6.18100509]
[1769401208641,13.5118452,122.67,122.6,3.46446213]
[1769401208838,10.79610224,122.66,122.6,3.46446213]
[1769401209940,3.44840224,122.65,122.58,6.18100509]
[1769401210541,3.44840224,122.65,122.59,3.46446213]
[1769401219046,3.50222682,122.69,122.61,3.42444682]
[1769401219247,6.21876978,122.69,122.62,6.14098978]
[1769401219644,3.50222682,122.69,122.63,3.42444682]
[1769401225555,3.50222682,122.69,122.63,10.77324682]
[1769401225762,3.50222682,122.69,122.64,3.42444682]
[1769401228761,3.50222682,122.71,122.65,3.42444682]
[1769401229970,3.50222682,122.71,122.65,10.77204682]
[1769401230655,3.50222682,122.7,122.65,3.42444682]
[1769401236670,0.05295415,122.69,122.65,3.42444682]
[1769401239264,0.05295415,122.69,122.65,6.14098978]
[1769401239471,0.05295415,122.69,122.65,3.42444682]
[1769401240673,0.05295415,122.69,122.66,5.94811862]